Cogmind - Beta 16.1 @@@ ROGUE MODE // 2026.03.28 @ 21:46:54 Player: Gatamar Result: Destroyed self with Grenade Launcher Performance ------------- Evolutions (0) 0 Regions Visited (2) 400 Robots Destroyed (11) 55 Value Destroyed (224) 224 Prototype IDs (0) 0 Alien Tech Used (0) 0 Bonus (0) 0 TOTAL SCORE: 679 Bonus ------- None Cogmind --------- Core Integrity 0/250 Matter 194/300 Energy 100/100 System Corruption 3% Temperature Cool (0) Movement Core (400) Ox7 Location -10/Mines Parts ------- > --- POWER (1) -------- (None) > --- PROPULSION (2) --- (None) > --- UTILITY (2) ------ Large Storage Unit > --- WEAPON (2) ------- Grenade Launcher > --- INVENTORY (15) --- Light Ion Engine Light Treads Light Treads Improved Heat Sink Small Storage Unit Structural Scanner Sensor Array Light Armor Plating Tractor Beam Small Laser Light Cannon Mining Laser Mining Laser Mining Claw Peak State ------------ > --- POWER ------------ Light Nuclear Core > --- PROPULSION ------- Light Treads Light Treads > --- UTILITY ---------- Large Storage Unit > --- WEAPON ----------- Light Assault Rifle Mining Claw > --- INVENTORY -------- Light Ion Engine Wheel Compact Wheel Improved Heat Sink Small Storage Unit Structural Scanner Sensor Array Light Armor Plating Tractor Beam Small Laser Light Cannon Grenade Launcher Grenade Launcher Mining Laser [Rating: 9] Favorites ----------- Power Light Ion Engine Engine Light Ion Engine Power Core Light Nuclear Core Propulsion Light Treads Treads Light Treads Wheel Compact Wheel Utility Large Storage Unit Storage Large Storage Unit Weapon Light Assault Rifle Energy Gun Small Laser Ballistic Gun Light Assault Rifle Launcher Grenade Launcher Slashing Weapon Mining Claw Build | -11 -10 -10 ------- Run | Yrd Mat Min Slots Evolved . | . . . Power . | . . . Propulsion . | . . . Utility . | . . . Weapon . | . . . Parts Attached 13 | 6 3 4 Power 2 | 1 1 . Engine 1 | 1 . . Core 1 | . 1 . Reactor . | . . . Propulsion 4 | 2 . 2 Treads 2 | 2 . . Leg . | . . . Wheel 2 | . . 2 Hover . | . . . Flight . | . . . Utility 2 | 1 1 . Device . | . . . Storage 2 | 1 1 . Processor . | . . . Hackware . | . . . Protection . | . . . Artifact . | . . . Weapon 5 | 2 1 2 Energy Gun 1 | 1 . . Energy Cannon . | . . . Ballistic Gun 1 | 1 . . Ballistic Cannon . | . . . Launcher 2 | . . 2 Special Weapon . | . . . Impact Weapon . | . . . Slashing Weapon 1 | . 1 . Piercing Weapon . | . . . Special Melee Weapon . | . . . Unidentified Prototypes . | . . . Parts Lost 6 | . 1 5 Power 2 | . 1 1 Propulsion 2 | . . 2 Utility . | . . . Weapon 2 | . . 2 Highest Loss Streak 5 | . 1 5 To Critical Strikes . | . . . Average Backups 11 | 2 11 14 Power 1 | . 1 1 Propulsion 1 | 1 2 2 Utility 3 | . 3 6 Weapon 4 | . 4 5 Tool/Special . | . . . Unused Backups 9 | . . 9 Power 1 | . . 1 Propulsion . | . . . Utility 5 | . . 5 Weapon 3 | . . 3 Tool/Special . | . . . Average Slot Usage (%) 84 | . 84 74 Engine 12 | . 13 . Core 1 | . . 11 Treads 27 | . 28 15 Storage 14 | . 14 14 Energy Gun 8 | . 8 . Ballistic Gun 13 | . 14 11 Slashing Weapon 5 | . 5 11 Peak Build Rating 9 | 6 9 9 Average Rating 6 | 4 6 7 On Entrance 5 | . 6 9 Avg Prop Armor Cover (%) . | . . . Naked Turns . | . . . Heaviest Build 28 | 10 28 28 Greatest Support 40 | 40 40 40 Greatest Overweight (x) 7 | . . 7 Average Overweight (x) . | . . . Largest Inventory Capacity 15 | 8 15 15 Average Capacity 14 | 7 14 15 Most Carried 15 | 4 15 15 Average Carried 11 | 2 11 14 Final Capacity 15 | 8 15 15 Final Carried 15 | 4 15 14 Class Distribution -------------------- 100% | Mutant Dominant Class ---------------- Mutant | -10/Materials Mutant | -10/Mines Resources | -11 -10 -10 ----------- Run | Yrd Mat Min Matter Collected 326 | 260 66 . Remotely . | . . . Salvage Created 450 | . 415 35 Parts 15 | . 14 1 Haulers Intercepted . | . . . Recyclers Shooed 3 | . 3 . Parts Field Recycled . | . . . Retrieved Matter . | . . . Parts Self-Destructed . | . . . Prevented . | . . . Parts Restored . | . . . Kills | -11 -10 -10 ------- Run | Yrd Mat Min Combat Hostiles Destroyed 16 | . 4 12 Guns 4 | . 4 . AOE 12 | . . 12 Classes Destroyed 6 | . 4 2 Worker 1 | . 1 . Recycler 3 | . 3 . Operator 1 | . 1 . Swarmer 2 | . . 2 Grunt 4 | . 4 . Assembled 10 | . . 10 Best Kill Streak 12 | . 3 12 Combat Bots Only 12 | . 1 12 Max Kills in Single Turn 3 | . 1 3 Gunslinging . | . . . Exploded 3 | . . 3 Melee . | . . . Uniques/NPCs Destroyed . | . . . Combat | -11 -10 -10 -------- Run | Yrd Mat Min Hostile Shots Fired 79 | . 13 66 Missed 23 | . 3 20 Hits 56 | . 10 46 Melee 2 | . . 2 Projectile 54 | . 10 44 Part Disruptions 1 | . . 1 Damage Taken 775 | . 116 659 Core 265 | . 12 253 Absorbed by Shields . | . . . Core Remaining (%) 100 | 100 . . Volleys Fired 55 | . 44 11 Largest 2 | . 2 1 Hottest 60 | . 60 30 Shots Fired 63 | . 53 10 Gun 54 | . 53 1 Cannon . | . . . Launcher 9 | . . 9 Special . | . . . Kinetic 45 | . 44 1 Thermal 9 | . 9 . Explosive 9 | . . 9 Electromagnetic . | . . . Robot Hit Streak 7 | . 7 7 Robot Miss Streak 4 | . 4 1 Penetration Max . | . . . Secondary Targets . | . . . Shots Hit Robots 41 | . 37 4 Core Hits 46 | . 15 31 Critical Kills . | . . . Critical Parts Destroyed . | . . . Critical Strikes . | . . . Melee Attacks 6 | . 6 . Impact . | . . . Slashing 6 | . 6 . Piercing . | . . . Sneak Attacks 2 | . 2 . Combat Hostiles . | . . . Follow-up Attacks . | . . . Damage Inflicted 1092 | . 406 686 Guns 312 | . 302 10 Cannons . | . . . Explosions 676 | . . 676 Melee 62 | . 62 . Ramming 42 | . 42 . Kinetic 266 | . 256 10 Thermal 46 | . 46 . Explosive 676 | . . 676 Electromagnetic . | . . . Impact . | . . . Slashing 62 | . 62 . Piercing . | . . . Highest Corruption 3 | . . 3 Average Corruption 2 | . . 2 Corruption Purged . | . . . Corruption Blocked . | . . . Effects 1 | . . 1 Weapon Failures 1 | . . 1 Overload Shots . | . . . Overflow Damage 60 | . 40 20 Projectiles . | . . . Explosions 20 | . . 20 Melee 40 | . 40 . Knockbacks 1 | . 1 . Impact 1 | . 1 . Kinetic . | . . . Secondary . | . . . Self-Inflicted Damage 89 | . . 89 Shots 4 | . . 4 Rammed 7 | . 7 . Targets Rammed 8 | . 8 . Kicked . | . . . Crushed 1 | . 1 . Highest Temperature 32 | . 32 30 Average Temperature 12 | . 15 9 Received Heat Transfer 360 | . 60 300 Siege Activations . | . . . Martial Activations . | . . . Shielding Activations . | . . . Robots Disrupted . | . . . Combat Hostiles . | . . . Robots Corrupted . | . . . Combat Hostiles . | . . . Parts Fried . | . . . Impact Corruptions . | . . . Robots Melted . | . . . Combat Hostiles . | . . . Parts Melted . | . . . Heat Transferred 100 | . 100 . Parts Sabotaged . | . . . Parts Stolen . | . . . Parts Stripped . | . . . Power Chain Reactions . | . . . Alert | -11 -10 -10 ------- Run | Yrd Mat Min Maximum Alert Level . | . . . Low Security (%) 100 | 100 100 100 Level 1 . | . . . Level 2 . | . . . Level 3 . | . . . Level 4 . | . . . Level 5 . | . . . High Security . | . . . Max Security . | . . . Peak Influence 61 | . 42 61 Initial 9 | . . 9 Average 4 | . 4 13 Influence Increases 236 | . 135 101 Destroy 0b10 Robot/C 120 | . 80 40 Destroy 0b10 Robot/NC 25 | . 25 . Destroy Leader 30 | . 30 . Disable Machine 30 | . . 30 Destroy Structure 31 | . . 31 Influence Decreases 185 | . 109 76 Entered New Map 17 | . . 17 Time Decay 128 | . 99 29 Lost Part 40 | . 10 30 Squads Dispatched 4 | . 4 . Investigation 2 | . 2 . Extermination . | . . . Reinforcement 2 | . 2 . Assault . | . . . Garrison . | . . . Intercept . | . . . Searches Triggered . | . . . Construction Impeded . | . . . Haulers Reinforced . | . . . Active Scanning Responses . | . . . Cargo Convoy Interrupts . | . . . Stealth | -11 -10 -10 --------- Run | Yrd Mat Min Distress Signals . | . . . Communications Jammed . | . . . Distress Signals . | . . . Times Spotted 41 | . 12 29 Peak Tracking Total 20 | . 3 20 Tactical Retreats 2 | . . 2 Traps | -11 -10 -10 ------- Run | Yrd Mat Min Traps Triggered . | . . . Indirectly . | . . . Trap Hack Attempts . | . . . Triggered . | . . . Disarmed . | . . . Reprogrammed . | . . . Reused . | . . . Traps Extracted . | . . . Installed . | . . . Triggered . | . . . Machines | -11 -10 -10 ---------- Run | Yrd Mat Min Machines Disabled 2 | . . 2 Max in Single Turn 1 | . . 1 Machines Repaired . | . . . Machines Dismantled . | . . . Machines Sabotaged . | . . . Overloaded Fab Kills . | . . . Hacking | -11 -10 -10 --------- Run | Yrd Mat Min Machines Accessed 3 | . 3 . Terminals 2 | . 2 . Fabricators . | . . . Repair Stations . | . . . Recycling Units 1 | . 1 . Scanalyzers . | . . . Garrison Access . | . . . Total Hacks 6 | . 6 . Successful 3 | . 3 . Failed 3 | . 3 . Catastrophic 2 | . 2 . Database Lockouts . | . . . Manual 1 | . 1 . Terminals 3 | . 3 . Fabricators . | . . . Repair Stations . | . . . Recycling Units 3 | . 3 . Scanalyzers . | . . . Garrison Access . | . . . Terminal Hacks . | . . . Fabricator Hacks . | . . . Repair Station Hacks . | . . . Recycling Unit Hacks 3 | . 3 . Report Inventory 2 | . 2 . Retrieve Components 1 | . 1 . Scanalyzer . | . . . Garrison Access Hacks . | . . . Unauthorized Hacks . | . . . Terminals . | . . . Fabricators . | . . . Repair Stations . | . . . Recycling Units . | . . . Scanalyzers . | . . . Garrison Access . | . . . Data Cores Recovered . | . . . Used . | . . . Hacking Detections 3 | . 3 . Full Trace Events 1 | . 1 . Feedback Events . | . . . Feedback Blocked . | . . . Robot Schematics Acquired . | . . . Robots Built . | . . . Authchips . | . . . Time . | . . . Total Robot Build Rating . | . . . Part Schematics Acquired . | . . . Parts Built . | . . . Authchips . | . . . Time . | . . . Total Part Build Rating . | . . . Part Studies Acquired . | . . . Parts Repaired . | . . . Time . | . . . Parts Recycled . | . . . Recycled Matter . | . . . Retrieved Matter . | . . . Retrieved Components 2 | . 2 . Parts Scanalyzed . | . . . Part Schematics Acquired . | . . . Parts Damaged . | . . . Bothacking | -11 -10 -10 ------------ Run | Yrd Mat Min Used RIF Installer . | . . . Robots Hacked . | . . . Non-combat . | . . . Combat . | . . . Robot Hacks Applied . | . . . Relay Couplers Released . | . . . Fabnet Peak Effective % . | . . . Robots Rewired . | . . . Allies Hacked . | . . . Hacks Repelled . | . . . Allies | -11 -10 -10 -------- Run | Yrd Mat Min Total Allies . | . . . Largest Group . | . . . Highest-Rated Group . | . . . Highest-Rated Ally . | . . . Total Orders . | . . . Ally Attacks . | . . . Total Damage . | . . . Kills . | . . . Allies Corrupted . | . . . Allies Melted . | . . . Intel | -11 -10 -10 ------- Run | Yrd Mat Min Active Infowar (turns) . | . . . Robot Analysis Total . | . . . Derelict Logs Recovered . | . . . Drone Launches . | . . . Drone Recoveries . | . . . Exploration | -11 -10 -10 ------------- Run | Yrd Mat Min Turns Passed 1505 | 94 1310 101 Spaces Moved 808 | 53 700 55 Core 3 | 2 . 1 Treads 778 | 51 700 27 Legs . | . . . Wheels 27 | . . 27 Hover . | . . . Flight . | . . . Fastest Speed 50 | 50 160 105 Average Speed 158 | 155 160 137 Slowest Speed 400 | 160 160 400 Overloaded Moves . | . . . Propulsion Burnouts . | . . . Robots Hopped . | . . . Potential Cave-ins . | . . . Cave-ins Triggered 1 | . . 1 Exploration Rate (%) 31 | 5 76 14 Regions Visited 2 Branch Regions 1 Pre-discovered Areas . | . . . Known Exits Taken . | . . . Unknown Exits Taken 2 | 1 1 . Scrap Searched . | . . . Spaces Dug . | . . . Terrain Destroyed 46 | . . 46 Melee . | . . . Projectile . | . . . AOE 46 | . . 46 Terrain Rammed . | . . . Walls Destroyed . | . . . Machines Disabled . | . . . Actions | -11 -10 -10 --------- Run | Yrd Mat Min Total 961 | 62 829 70 Wait 56 | . 56 . Move 806 | 52 699 55 Hop . | . . . Pick Up 15 | 4 11 . Fast Attach 7 | 6 1 . Attach 2 | . 1 1 Detach 1 | . 1 . Swap 4 | . 1 3 Drop 1 | . 1 . Fire 55 | . 44 11 Melee 6 | . 6 . Ram . | . . . Kick . | . . . Crush 8 | . 8 . Escape Stasis . | . . . Rewire . | . . . Trap . | . . . Miscellaneous . | . . . Route ------- -11/Scrapyard -10/Materials (discovered 3 exits: [*Mat] / [*Min x2]) -10/Mines History --------- Turn | Location | Event 14 | -11/Scrapyard | Discovered new exit (range 14) 95 | -11/Scrapyard | Entered Materials 96 | -10/Materials | Met a group of wandering Federalists 315 | -10/Materials | Build established: Mutant 491 | -10/Materials | Discovered new exit (range 14) 660 | -10/Materials | Discovered new exit (range 10) 740 | -10/Materials | Discovered new exit (range 16) 1405 | -10/Materials | Entered Mines 1415 | -10/Mines | Met a Derelict bent on vengeance 1427 | -10/Mines | Assembled infested the area 1482 | -10/Mines | Core integrity fell below 50% 1495 | -10/Mines | Crushed by falling debris 1497 | -10/Mines | Core integrity fell below 20% 1506 | -10/Mines | Destroyed self with Grenade Launcher Last Messages --------------- 01485_ as-62541 destroyed. 01485_ as-12045 destroyed. 01485_ Pulverizer disabled. 01485_ as-59209 destroyed. 01487_ Grenade Launcher destroyed. 01488_ Com. Wheel destroyed. 01488_ System corrupted by crushing effect (+1). 01488_ Knocked back. 01488_ as-41549 destroyed. 01488_ Lgt. Assault Rifle destroyed. 01490_ S-10 Pest destroyed. 01490_ as-61118 destroyed. 01490_ Destroyed Asb. Hover Unit. 01494_ as-17673 destroyed. 01495_ The unstable cave ceiling collapses. 01495_ Crushed by falling debris. 01498_ as-32071 destroyed. 01498_ as-66827 destroyed. 01500_ System corrupted: Grenade Launcher failed to launch. Map ----- +----------------------------------------------------+ | | | | | | | | | ????????????????????????????? | | ????????????????????????????? | | ????????????????????????????? | | ????????????????????????????? | | ????????????????????????????? | | ????????????????????????????? | | ????????????????????????????? | | ????????????????????????????? | | ???????????????############?? | | ??????????????# #?? | | ??????????????# #?? | | ??????????????# """" """" #?? | | ??????????????# """" """" #?? | | ??????????????# """" """" #?? | | ?????????????## ##? | | ?????????????# " " """" #? | | ???????????### " " #? | | ??????????## * ## | | ??????????# # | | ??????????# a # | | ??????????# % # | | ??????????# #@#?? | | ??????????# ##?##### #?? | | ?????????## ##????#######?? | | ????????## #????????????? | | ???????## #????????????? | | ???##### #####?????????? | | ???# #?????????? | | ??# #?????????? | | ??# ### #?????????? | | ??# ##?# #?????????? | | ?# ##?? #?????????? | | ##???? #?????????? | | #?????? #?????????? | | #??????? #?????????? | | # ??????? #?????????? | | ## #???????? #?????????? | | ??# ??????????# #?????????? | | ??#???????????# ?????????? | | ??????????????# ?????????? | | ?????????????? ?????????? | | ?????????????? ?????????? | | ?????????????? " #?????????? | | ?????????????? ##??????????? | | ????????????????????????????? | | ????????????????????????????? | +----------------------------------------------------+ Best States ------------- Heat Dissipation 25 Energy Generation 14 Energy Capacity 160 Matter Stores 300 Matter Capacity 300 Sight Range 16 Terrain Scan Density 10 Evasion (%) 40 Recoil Reduction 2 Item Schematics ----------------- None Robot Schematics ------------------ None Fabricated ------------ Nothing Repaired ---------- Nothing Studied --------- None Alien Tech Used ----------------- None Achievements -------------- Hunted Challenges ------------ None Game ------ Seed ModifiedConceptMapper Manual? 0 Play Time 00:11:58 Cumulative 26.6 hours Start 2026.03.28 @ 20:03:23 End 2026.03.28 @ 21:46:54 Sessions 1 Manual Loads 0 Difficulty Rogue Special Mode None Game No. 68 Rogue 68 Adventurer 0 Explorer 0 Win Type - Total 0 Types 0/0/0/0/0/0/0/0/0/0 Lore% 24 Gallery% 26 Achievement% 20 Wizard Run 0 Options --------- Layout 1 ASCII 0 Keyboard 0 Movement Numpad Keybinds 0 Fullscreen 1 Font 32/SmallcapsGlow Map View 50x35 Zoom Use 0% Tactical HUD 1 Map Filters NONE Filters NONE Steam 1 RUN: 7bd2263b-14cf-4624-982f-1fcdb32c8a1c